[Event "Hungarian Youth-ch I 2024"]
[Site "Szolnok"]
[Date "2024.04.04"]
[Round "6.13"]
[White "Sallai, Marton"]
[Black "Sinoros-Szabo, Daniel"]
[Result "0-1"]
[ECO "A49"]
[WhiteElo "1828"]
[BlackElo "1971"]
[Annotator "RC"]
[PlyCount "48"]
[EventDate "2024.03.31"]
[EventType "swiss"]
[EventCountry "HUN"]
[SourceTitle "playchess.com"]
[Source "ChessBase"]
[SourceQuality "1"]
[TimeControl "5400+30"]

1. d4 {[%emt 0:00:03]} Nf6 {[%emt 0:00:20]} 2. Nf3 {[%emt 0:00:09]} g6 {[%emt 0:00:33]} 3. g3 {[%emt 0:00:08]} Bg7 {[%emt 0:00:25]} 4. Bg2 {[%emt 0:00:08]} O-O {[%emt 0:00:20]} 5. O-O {[%emt 0:00:07]} d6 {[%emt 0:00:14]} 6. b3 {[%emt 0:00:06]} e5 {[%emt 0:02:16]} 7. dxe5 {[%emt 0:00:09]} Nfd7 {[%emt 0:00:19]} 8. Bb2 {[%emt 0:03:38]} Nc6 {[%emt 0:01:18]} 9. c4 {[%emt 0:04:41]} dxe5 {[%emt 0:05:16]} 10. Nc3 {[%emt 0:15:52]} Re8 {[%emt 0:16:06]} 11. e3 {[%emt 0:06:34]} f5 {[%emt 0:14:08]} 12. Qc1 {[%emt 0:11:40]} e4 {[%emt 0:05:49]} 13. Ne1 {[%emt 0:02:46]} Nce5 {[%emt 0:03:11]} 14. Qc2 {[%emt 0:08:10]} c6 {[%emt 0:03:14]} 15. Rd1 {[%emt 0:02:24]} Qe7 {[%emt 0:02:59]} 16. h3 {[%emt 0:05:46]} h5 {[%emt 0:03:05]} 17. Nxe4 {[%emt 0:02:15]} fxe4 {[%emt 0:03:20]} 18. Bxe4 {[%emt 0:00:15]} Nf8 {[%emt 0:11:26]} 19. Bxe5 {[%emt 0:03:28]} Qxe5 {[%emt 0:01:18]} 20. Bxg6 {[%emt 0:00:24]} Nxg6 {[%emt 0:01:15]} 21. Qxg6 {[%emt 0:00:06]} Bxh3 {[%emt 0:01:13]} 22. Nd3 {[%emt 0:01:27]} Qf6 {[%emt 0:05:49]} 23. Qxf6 {[%emt 0:00:35]} Bxf6 {[%emt 0:00:05]} 24. Rfe1 {[%emt 0:00:07]} Bc3 {[%emt 0:01:50]} 0-1

[Event "Hungarian Youth-ch I 2024"]
[Site "Szolnok"]
[Date "2024.04.04"]
[Round "6.14"]
[White "Horvath, Andras"]
[Black "Jokai, Bence"]
[Result "1/2-1/2"]
[ECO "B76"]
[WhiteElo "2260"]
[BlackElo "1750"]
[Annotator "RC"]
[PlyCount "62"]
[EventDate "2024.03.31"]
[EventType "swiss"]
[EventCountry "HUN"]
[SourceTitle "playchess.com"]
[Source "ChessBase"]
[SourceQuality "1"]
[TimeControl "5400+30"]

1. e4 {[%emt 0:00:04]} c5 {[%emt 0:00:09]} 2. Nf3 {[%emt 0:00:04]} d6 {[%emt 0:00:04]} 3. d4 {[%emt 0:00:06]} cxd4 {[%emt 0:00:06]} 4. Nxd4 {[%emt 0:00:05]} Nf6 {[%emt 0:00:05]} 5. Nc3 {[%emt 0:00:09]} g6 {[%emt 0:00:05]} 6. Be3 {[%emt 0:00:13]} Bg7 {[%emt 0:00:06]} 7. f3 {[%emt 0:00:11]} O-O {[%emt 0:00:07]} 8. Qd2 {[%emt 0:00:06]} Nc6 {[%emt 0:00:06]} 9. O-O-O {[%emt 0:00:09]} d5 {[%emt 0:00:07]} 10. Kb1 {[%emt 0:00:17]} Nxd4 {[%emt 0:02:17]} 11. e5 {[%emt 0:00:58]} Nxf3 {[%emt 0:00:16]} 12. gxf3 {[%emt 0:01:46]} Nh5 {[%emt 0:00:30]} 13. Nxd5 {[%emt 0:19:29]} Be6 {[%emt 0:03:47]} 14. f4 {[%emt 0:21:24]} Bxd5 {[%emt 0:05:37]} 15. Qxd5 {[%emt 0:00:02]} Qxd5 {[%emt 0:02:16]} 16. Rxd5 {[%emt 0:00:02]} Rad8 {[%emt 0:06:49]} 17. Bc4 {[%emt 0:03:37]} e6 {[%emt 0:03:02]} 18. Rxd8 {[%emt 0:20:18]} Rxd8 {[%emt 0:00:07]} 19. Be2 {[%emt 0:04:14]} f6 {[%emt 0:05:13]} 20. Bxh5 {[%emt 0:05:08]} gxh5 {[%emt 0:00:10]} 21. exf6 {[%emt 0:02:09]} Bxf6 {[%emt 0:00:10]} 22. Bxa7 {[%emt 0:01:00]} Kf7 {[%emt 0:02:01]} 23. Be3 {[%emt 0:04:23]} Kg6 {[%emt 0:00:45]} 24. a4 {[%emt 0:02:34]} Kf5 {[%emt 0:01:22]} 25. a5 {[%emt 0:07:22]} Rd5 {[%emt 0:01:43]} 26. c3 {[%emt 0:03:40]} Ke4 {[%emt 0:05:11]} 27. Re1 {[%emt 0:00:51]} Kf3 {[%emt 0:00:19]} 28. Bb6 {[%emt 0:01:24]} Rd6 {[%emt 0:05:36]} 29. Kc2 {[%emt 0:00:45]} Kg2 {[%emt 0:04:10]} 30. Re2+ {[%emt 0:00:31]} Kf3 {[%emt 0:00:12]} 31. Re1 {[%emt 0:00:15]} Kg2 {[%emt 0:00:06]} 1/2-1/2

[Event "Hungarian Youth-ch I 2024"]
[Site "Szolnok"]
[Date "2024.04.04"]
[Round "6.15"]
[White "Hangay, Oliver"]
[Black "Meszaros-Csonka, David"]
[Result "1-0"]
[ECO "B33"]
[WhiteElo "1962"]
[BlackElo "1941"]
[Annotator "RC"]
[PlyCount "163"]
[EventDate "2024.03.31"]
[EventType "swiss"]
[EventCountry "HUN"]
[SourceTitle "playchess.com"]
[Source "ChessBase"]
[SourceQuality "1"]
[TimeControl "5400+30"]

1. e4 {[%emt 0:00:04]} c5 {[%emt 0:00:47]} 2. Nf3 {[%emt 0:00:08]} Nc6 {[%emt 0:00:13]} 3. d4 {[%emt 0:00:03]} cxd4 {[%emt 0:00:10]} 4. Nxd4 {[%emt 0:00:04]} Nf6 {[%emt 0:00:14]} 5. Nc3 {[%emt 0:00:05]} e6 {[%emt 0:00:23]} 6. Ndb5 {[%emt 0:00:18]} d6 {[%emt 0:00:25]} 7. Bf4 {[%emt 0:00:05]} e5 {[%emt 0:00:16]} 8. Bg5 {[%emt 0:00:04]} a6 {[%emt 0:00:09]} 9. Na3 {[%emt 0:00:11]} b5 {[%emt 0:00:08]} 10. Nd5 {[%emt 0:00:06]} Be7 {[%emt 0:00:07]} 11. Bxf6 {[%emt 0:00:06]} Bxf6 {[%emt 0:00:20]} 12. c3 {[%emt 0:00:12]} O-O {[%emt 0:00:07]} 13. Nc2 {[%emt 0:00:09]} Rb8 {[%emt 0:00:07]} 14. h4 {[%emt 0:00:42]} g6 {[%emt 0:00:07]} 15. g3 {[%emt 0:00:23]} Bg7 {[%emt 0:00:18]} 16. h5 {[%emt 0:00:12]} Ne7 {[%emt 0:00:48]} 17. Nce3 {[%emt 0:00:21]} Nxd5 {[%emt 0:00:05]} 18. Nxd5 {[%emt 0:00:10]} Bb7 {[%emt 0:00:20]} 19. Bg2 {[%emt 0:06:38]} Bf6 {[%emt 0:13:56]} 20. Qd3 {[%emt 0:15:29]} Bg5 {[%emt 0:09:46]} 21. Rd1 {[%emt 0:11:50]} a5 {[%emt 0:43:55]} 22. Kf1 {[%emt 0:23:14]} Qc8 {[%emt 0:11:02]} 23. Ne3 {[%emt 0:18:12]} Rd8 {[%emt 0:08:23]} 24. hxg6 {[%emt 0:01:30]} hxg6 {[%emt 0:00:13]} 25. Bf3 {[%emt 0:02:03]} Ba6 {[%emt 0:04:26]} 26. Kg2 {[%emt 0:01:09]} b4 {[%emt 0:01:40]} 27. Qd5 {[%emt 0:01:17]} Rb5 {[%emt 0:01:40]} 28. Rh8+ {[%emt 0:03:43]} Kxh8 {[%emt 0:02:49]} 29. Qxf7 {[%emt 0:00:07]} Bh4 {[%emt 0:01:15]} 30. Rh1 {[%emt 0:04:34]} g5 {[%emt 0:00:04]} 31. Nf5 {[%emt 0:05:25]} Rb7 {[%emt 0:00:55]} 32. Ne7 {[%emt 0:01:12]} Rxe7 {[%emt 0:00:18]} 33. Qxe7 {[%emt 0:00:09]} Kg8 {[%emt 0:00:33]} 34. gxh4 {[%emt 0:01:10]} Qd7 {[%emt 0:00:54]} 35. Qxg5+ {[%emt 0:01:21]} Qg7 {[%emt 0:00:01]} 36. Qxg7+ {[%emt 0:01:56]} Kxg7 {[%emt 0:00:02]} 37. cxb4 {[%emt 0:00:29]} axb4 {[%emt 0:00:01]} 38. Rd1 {[%emt 0:00:32]} Kf6 {[%emt 0:00:20]} 39. Rd2 {[%emt 0:01:07]} Ke7 {[%emt 0:00:21]} 40. Bg4 {[%emt 0:00:46]} Ra8 {[%emt 0:01:07]} 41. Kg3 {[%emt 0:00:40]} Bb7 {[%emt 0:00:10]} 42. Bf5 {[%emt 0:01:40]} Rxa2 {[%emt 0:01:18]} 43. h5 {[%emt 0:00:36]} Ra8 {[%emt 0:00:02]} 44. h6 {[%emt 0:00:41]} Rh8 {[%emt 0:00:52]} 45. h7 {[%emt 0:00:07]} Bc8 {[%emt 0:00:16]} 46. Bxc8 {[%emt 0:00:26]} Rxc8 {[%emt 0:00:01]} 47. f4 {[%emt 0:00:38]} Rh8 {[%emt 0:00:20]} 48. Rh2 {[%emt 0:00:15]} Kf7 {[%emt 0:00:52]} 49. Rh6 {[%emt 0:00:53]} exf4+ {[%emt 0:00:35]} 50. Kxf4 {[%emt 0:00:01]} Kg7 {[%emt 0:00:27]} 51. Rxd6 {[%emt 0:00:06]} Kxh7 {[%emt 0:00:02]} 52. Rb6 {[%emt 0:00:16]} Kg7 {[%emt 0:00:21]} 53. Rxb4 {[%emt 0:00:08]} Rh1 {[%emt 0:00:06]} 54. Rb7+ {[%emt 0:00:11]} Kf6 {[%emt 0:00:13]} 55. Rb6+ {[%emt 0:00:04]} Ke7 {[%emt 0:00:07]} 56. Ke5 {[%emt 0:00:34]} Rh5+ {[%emt 0:00:05]} 57. Kd4 {[%emt 0:00:07]} Rh1 {[%emt 0:00:04]} 58. Kd5 {[%emt 0:00:33]} Rd1+ {[%emt 0:00:11]} 59. Ke5 {[%emt 0:00:03]} Rh1 {[%emt 0:00:28]} 60. Rb7+ {[%emt 0:00:05]} Ke8 {[%emt 0:00:13]} 61. Kd5 {[%emt 0:00:26]} Rh5+ {[%emt 0:00:34]} 62. e5 {[%emt 0:00:11]} Rh6 {[%emt 0:00:04]} 63. b4 {[%emt 0:00:17]} Kd8 {[%emt 0:00:04]} 64. Rb5 {[%emt 0:04:42]} Ke7 {[%emt 0:00:49]} 65. Rc5 {[%emt 0:00:19]} Kd7 {[%emt 0:00:11]} 66. Kc4 {[%emt 0:00:14]} Rb6 {[%emt 0:01:38]} 67. b5 {[%emt 0:00:16]} Rh6 {[%emt 0:00:19]} 68. Kb4 {[%emt 0:00:17]} Rh1 {[%emt 0:01:02]} 69. Ka5 {[%emt 0:00:24]} Rh6 {[%emt 0:00:18]} 70. b6 {[%emt 0:00:23]} Rh1 {[%emt 0:00:18]} 71. Ka6 {[%emt 0:00:19]} Ra1+ {[%emt 0:00:11]} 72. Kb7 {[%emt 0:00:14]} Rb1 {[%emt 0:00:11]} 73. Ka7 {[%emt 0:00:52]} Ra1+ {[%emt 0:00:04]} 74. Kb8 {[%emt 0:00:08]} Rb1 {[%emt 0:00:08]} 75. b7 {[%emt 0:00:42]} Rb2 {[%emt 0:00:09]} 76. Rc1 {[%emt 0:00:13]} Rb3 {[%emt 0:00:13]} 77. Rd1+ {[%emt 0:01:28]} Ke7 {[%emt 0:00:04]} 78. Rd4 {[%emt 0:01:08]} Ke8 {[%emt 0:00:13]} 79. Rd5 {[%emt 0:00:25]} Ke7 {[%emt 0:00:05]} 80. Kc7 {[%emt 0:00:17]} Rc3+ {[%emt 0:00:03]} 81. Kb6 {[%emt 0:00:08]} Rb3+ {[%emt 0:00:04]} 82. Rb5 1-0

[Event "Hungarian Youth-ch I 2024"]
[Site "Szolnok"]
[Date "2024.04.04"]
[Round "6.16"]
[White "Minga-Nagy, Abel Inti"]
[Black "Papai, Mate"]
[Result "0-1"]
[ECO "B47"]
[WhiteElo "1929"]
[BlackElo "1887"]
[Annotator "RC"]
[PlyCount "110"]
[EventDate "2024.03.31"]
[EventType "swiss"]
[EventCountry "HUN"]
[SourceTitle "playchess.com"]
[Source "ChessBase"]
[SourceQuality "1"]
[TimeControl "5400+30"]

1. e4 {[%emt 0:00:09]} c5 {[%emt 0:00:18]} 2. Nf3 {[%emt 0:00:08]} e6 {[%emt 0:00:26]} 3. d4 {[%emt 0:00:17]} cxd4 {[%emt 0:00:27]} 4. Nxd4 {[%emt 0:00:13]} Nc6 {[%emt 0:00:39]} 5. Nc3 {[%emt 0:00:14]} Qc7 {[%emt 0:01:02]} 6. g4 {[%emt 0:00:23]} h6 {[%emt 0:04:26]} 7. Bg2 {[%emt 0:03:25]} Nf6 {[%emt 0:03:41]} 8. Nxc6 {[%emt 0:11:18]} dxc6 {[%emt 0:00:56]} 9. Qe2 {[%emt 0:01:00]} e5 {[%emt 0:02:22]} 10. g5 {[%emt 0:00:55]} hxg5 {[%emt 0:03:11]} 11. Bxg5 {[%emt 0:00:36]} Be6 {[%emt 0:04:21]} 12. Rd1 {[%emt 0:19:52]} Bc5 {[%emt 0:06:00]} 13. Be3 {[%emt 0:02:23]} Bd4 {[%emt 0:03:11]} 14. Bxd4 {[%emt 0:03:40]} exd4 {[%emt 0:01:36]} 15. Rxd4 {[%emt 0:01:26]} Qe5 {[%emt 0:00:54]} 16. Qd2 {[%emt 0:05:22]} Rxh2 {[%emt 0:01:22]} 17. f4 {[%emt 0:07:09]} Rxh1+ {[%emt 0:06:09]} 18. Bxh1 {[%emt 0:00:09]} Qh5 {[%emt 0:00:10]} 19. Bg2 {[%emt 0:02:15]} Qh2 {[%emt 0:05:16]} 20. Kf1 {[%emt 0:01:07]} Nh5 {[%emt 0:05:39]} 21. e5 {[%emt 0:05:58]} Bh3 {[%emt 0:02:40]} 22. Qf2 {[%emt 0:02:29]} Qh1+ {[%emt 0:06:34]} 23. Qg1 {[%emt 0:01:34]} Bxg2+ {[%emt 0:00:27]} 24. Kf2 {[%emt 0:00:04]} Qxg1+ {[%emt 0:00:34]} 25. Kxg1 {[%emt 0:00:04]} Bd5 {[%emt 0:00:53]} 26. f5 {[%emt 0:00:40]} O-O-O {[%emt 0:01:18]} 27. Rg4 {[%emt 0:00:59]} Re8 {[%emt 0:00:58]} 28. Nxd5 {[%emt 0:01:45]} cxd5 {[%emt 0:00:08]} 29. Rg5 {[%emt 0:00:09]} g6 {[%emt 0:02:43]} 30. fxg6 {[%emt 0:00:24]} fxg6 {[%emt 0:00:18]} 31. Rxg6 {[%emt 0:00:19]} Rxe5 {[%emt 0:00:08]} 32. Kf2 {[%emt 0:00:48]} Nf4 {[%emt 0:02:14]} 33. Rg7 {[%emt 0:00:50]} a5 {[%emt 0:01:59]} 34. Kf3 {[%emt 0:01:12]} Ne6 {[%emt 0:00:15]} 35. Rg8+ {[%emt 0:00:19]} Kc7 {[%emt 0:00:21]} 36. c3 {[%emt 0:00:31]} b5 {[%emt 0:01:23]} 37. Ra8 {[%emt 0:00:25]} a4 {[%emt 0:00:25]} 38. b3 {[%emt 0:01:02]} axb3 {[%emt 0:00:44]} 39. axb3 {[%emt 0:00:11]} b4 {[%emt 0:02:21]} 40. cxb4 {[%emt 0:00:29]} Nd4+ {[%emt 0:00:08]} 41. Kf4 {[%emt 0:00:43]} Re4+ {[%emt 0:00:06]} 42. Kg3 {[%emt 0:00:09]} Nxb3 {[%emt 0:00:08]} 43. b5 {[%emt 0:00:12]} d4 {[%emt 0:01:20]} 44. b6+ {[%emt 0:00:15]} Kb7 {[%emt 0:00:09]} 45. Rd8 {[%emt 0:00:06]} Kxb6 {[%emt 0:03:44]} 46. Rb8+ {[%emt 0:00:12]} Kc5 {[%emt 0:00:03]} 47. Rxb3 {[%emt 0:00:19]} Kc4 {[%emt 0:00:22]} 48. Rb8 {[%emt 0:00:08]} d3 {[%emt 0:00:07]} 49. Kf3 {[%emt 0:00:31]} Re7 {[%emt 0:00:10]} 50. Rc8+ {[%emt 0:01:00]} Kb3 {[%emt 0:00:07]} 51. Kf2 {[%emt 0:00:49]} d2 {[%emt 0:00:09]} 52. Rd8 {[%emt 0:00:05]} Kc2 {[%emt 0:00:06]} 53. Rc8+ {[%emt 0:00:04]} Kd1 {[%emt 0:00:08]} 54. Ra8 {[%emt 0:00:18]} Rf7+ {[%emt 0:00:22]} 55. Ke3 {[%emt 0:00:23]} Ke1 {[%emt 0:00:11]} 0-1

[Event "Hungarian Youth-ch I 2024"]
[Site "Szolnok"]
[Date "2024.04.04"]
[Round "6.17"]
[White "Hegedus, Bernat"]
[Black "Liu, James Jiayu"]
[Result "1-0"]
[ECO "D35"]
[WhiteElo "1778"]
[BlackElo "1782"]
[Annotator "NA RC"]
[PlyCount "161"]
[EventDate "2024.03.31"]
[EventType "swiss"]
[EventCountry "HUN"]
[SourceTitle "playchess.com"]
[Source "ChessBase"]
[SourceQuality "1"]
[TimeControl "5400+30"]

1. d4 {[%emt 0:00:03]} d5 {[%emt 0:00:00]} 2. c4 {[%emt 0:00:10]} e6 {[%emt 0:00:00]} 3. Nc3 {[%emt 0:00:12]} Nf6 {[%emt 0:00:08]} 4. cxd5 {[%emt 0:00:12]} exd5 {[%emt 0:00:06]} 5. Bg5 {[%emt 0:00:09]} Be7 {[%emt 0:00:11]} 6. e3 {[%emt 0:00:32]} O-O {[%emt 0:00:33]} 7. Bd3 {[%emt 0:00:24]} Nbd7 {[%emt 0:11:52]} 8. Qc2 {[%emt 0:03:21]} h6 {[%emt 0:08:38]} 9. Bh4 {[%emt 0:02:32]} c6 {[%emt 0:01:08]} 10. f3 {[%emt 0:08:00]} Re8 {[%emt 0:12:14]} 11. Nge2 {[%emt 0:03:31]} Qc7 {[%emt 0:13:17]} 12. Bf2 {[%emt 0:07:46]} Nb6 {[%emt 0:13:19]} 13. g4 {[%emt 0:21:32]} Bxg4 {[%emt 0:06:45]} 14. fxg4 {[%emt 0:02:15]} Nxg4 {[%emt 0:00:17]} 15. Bg3 {[%emt 0:03:20]} Bd6 {[%emt 0:01:38]} 16. O-O-O {[%emt 0:04:29]} Nxe3 {[%emt 0:04:04]} 17. Qd2 {[%emt 0:06:58]} Nxd1 {[%emt 0:02:48]} 18. Rxd1 {[%emt 0:01:26]} Re6 {[%emt 0:04:47]} 19. Bf5 {[%emt 0:04:02]} Nc4 {[%emt 0:02:02]} 20. Qd3 {[%emt 0:01:37]} Re3 {[%emt 0:02:01]} 21. Qc2 {[%emt 0:01:53]} Rae8 {[%emt 0:01:46]} 22. Bd3 {[%emt 0:04:22]} Rxe2 {[%emt 0:02:23]} 23. Nxe2 {[%emt 0:02:42]} Ne3 {[%emt 0:00:31]} 24. Qd2 {[%emt 0:00:18]} Nxd1 {[%emt 0:00:13]} 25. Qxd1 {[%emt 0:00:15]} c5 {[%emt 0:01:02]} 26. dxc5 {[%emt 0:03:42]} Qxc5+ {[%emt 0:00:17]} 27. Kb1 {[%emt 0:00:52]} Bxg3 {[%emt 0:00:35]} 28. hxg3 {[%emt 0:00:20]} Qe3 {[%emt 0:01:12]} 29. Qc2 {[%emt 0:00:50]} g5 {[%emt 0:01:26]} 30. a3 {[%emt 0:01:03]} h5 {[%emt 0:00:35]} 31. Ka2 {[%emt 0:01:06]} Re7 {[%emt 0:01:40]} 32. Qc8+ {[%emt 0:00:39]} Re8 {[%emt 0:01:35]} 33. Qf5 {[%emt 0:00:37]} h4 {[%emt 0:00:46]} 34. gxh4 {[%emt 0:02:09]} gxh4 {[%emt 0:00:16]} 35. Qh7+ {[%emt 0:01:21]} Kf8 {[%emt 0:00:07]} 36. Qh8+ {[%emt 0:00:04]} Ke7 {[%emt 0:00:13]} 37. Qxh4+ {[%emt 0:00:09]} Kd6 {[%emt 0:00:27]} 38. Bb5 {[%emt 0:02:36]} Rc8 {[%emt 0:01:42]} 39. Qb4+ {[%emt 0:01:00]} Rc5 {[%emt 0:01:03]} 40. Qa5 {[%emt 0:02:52]} b6 {[%emt 0:01:03]} 41. Qb4 {[%emt 0:00:34]} a5 {[%emt 0:01:03]} 42. Qa4 {[%emt 0:01:24]} Qe4 {[%emt 0:00:36]} 43. Qb3 {[%emt 0:00:34]} a4 {[%emt 0:00:31]} 44. Qg3+ {[%emt 0:01:19]} Qe5 {[%emt 0:00:24]} 45. Qd3 {[%emt 0:00:34]} f5 {[%emt 0:01:08]} 46. Nd4 {[%emt 0:01:32]} Qe4 {[%emt 0:01:07]} 47. Qg3+ {[%emt 0:02:01]} f4 {[%emt 0:00:23]} 48. Qg7 {[%emt 0:00:30]} Rc7 {[%emt 0:00:53]} 49. Qf6+ {[%emt 0:00:46]} Kc5 {[%emt 0:00:25]} 50. Ne6+ {[%emt 0:00:41]} Kxb5 {[%emt 0:00:21]} 51. Nxc7+ {[%emt 0:00:08]} Ka5 {[%emt 0:00:15]} 52. Qc6 {[%emt 0:00:53]} Qc4+ {[%emt 0:00:19]} 53. Qxc4 {[%emt 0:00:05]} dxc4 {[%emt 0:00:15]} 54. Nd5 {[%emt 0:00:08]} f3 {[%emt 0:00:31]} 55. Ne3 {[%emt 0:00:12]} Kb5 {[%emt 0:00:14]} 56. Kb1 {[%emt 0:00:14]} Kc5 {[%emt 0:00:25]} 57. Kc2 {[%emt 0:00:25]} Kd4 {[%emt 0:00:25]} 58. Kd2 {[%emt 0:00:27]} f2 {[%emt 0:00:25]} 59. Nf1 {[%emt 0:00:34]} b5 {[%emt 0:01:28]} 60. Ng3 {[%emt 0:00:37]} Kd5 {[%emt 0:01:25]} 61. Kc3 {[%emt 0:00:44]} Ke5 {[%emt 0:01:15]} 62. Kb4 {[%emt 0:01:59]} Kd4 {[%emt 0:00:22]} 63. Nf1 {[%emt 0:01:44]} Kd3 {[%emt 0:00:20]} 64. Kxb5 {[%emt 0:00:30]} c3 {[%emt 0:00:12]} 65. bxc3 {[%emt 0:00:10]} Kxc3 {[%emt 0:00:04]} 66. Kxa4 {[%emt 0:00:06]} Kc4 {[%emt 0:00:08]} 67. Nd2+ {[%emt 0:00:56]} Kd3 {[%emt 0:00:26]} 68. Nf1 {[%emt 0:00:17]} Kc4 {[%emt 0:00:06]} 69. Ka5 {[%emt 0:00:31]} Kc5 {[%emt 0:00:25]} 70. Ka6 {[%emt 0:00:24]} Kc6 {[%emt 0:00:48]} 71. a4 {[%emt 0:00:18]} Kc5 {[%emt 0:00:47]} 72. Nd2 {[%emt 0:00:24]} Kc6 {[%emt 0:01:03]} 73. a5 {[%emt 0:00:08]} Kc7 {[%emt 0:00:25]} 74. Kb5 {[%emt 0:00:50]} Kb7 {[%emt 0:00:10]} 75. a6+ {[%emt 0:00:06]} Ka7 {[%emt 0:00:17]} 76. Ka5 {[%emt 0:00:13]} Ka8 {[%emt 0:00:13]} 77. Kb6 {[%emt 0:00:08]} Kb8 {[%emt 0:00:08]} 78. Nf1 {[%emt 0:00:08]} Ka8 {[%emt 0:00:17]} 79. Ne3 {[%emt 0:00:14]} Kb8 {[%emt 0:01:08]} 80. a7+ {[%emt 0:00:21]} Ka8 {[%emt 0:00:26]} 81. Nd5 {[%emt 0:00:10]} 1-0

[Event "Hungarian Youth-ch I 2024"]
[Site "Szolnok"]
[Date "2024.04.04"]
[Round "6.18"]
[White "Botond, Laszlo"]
[Black "Nagy, Norbert"]
[Result "0-1"]
[ECO "B30"]
[WhiteElo "1831"]
[BlackElo "1629"]
[Annotator "NA RC"]
[PlyCount "68"]
[EventDate "2024.03.31"]
[EventType "swiss"]
[EventCountry "HUN"]
[SourceTitle "playchess.com"]
[Source "ChessBase"]
[SourceQuality "1"]
[TimeControl "5400+30"]

1. e4 {[%emt 0:00:02]} c5 {[%emt 0:00:17]} 2. Nf3 {[%emt 0:00:09]} Nc6 {[%emt 0:00:06]} 3. Bb5 {[%emt 0:00:21]} e6 {[%emt 0:00:09]} 4. d4 {[%emt 0:00:54]} cxd4 {[%emt 0:00:25]} 5. Nxd4 {[%emt 0:00:27]} Nf6 {[%emt 0:00:19]} 6. Bxc6 {[%emt 0:15:51]} bxc6 {[%emt 0:01:39]} 7. e5 {[%emt 0:02:15]} Qa5+ {[%emt 0:00:26]} 8. Nc3 {[%emt 0:00:35]} Qxe5+ {[%emt 0:00:42]} 9. Be3 {[%emt 0:00:29]} Be7 {[%emt 0:01:00]} 10. O-O {[%emt 0:03:28]} O-O {[%emt 0:02:54]} 11. h3 {[%emt 0:04:04]} Bb7 {[%emt 0:01:50]} 12. Nf3 {[%emt 0:02:12]} Qc7 {[%emt 0:01:07]} 13. Bg5 {[%emt 0:01:14]} h6 {[%emt 0:00:26]} 14. Bh4 {[%emt 0:00:15]} d5 {[%emt 0:00:42]} 15. Bg3 {[%emt 0:00:57]} Qb6 {[%emt 0:01:35]} 16. Qd3 {[%emt 0:03:05]} Ba6 {[%emt 0:00:49]} 17. Qd2 {[%emt 0:08:10]} Bxf1 {[%emt 0:01:45]} 18. Rxf1 {[%emt 0:00:11]} Rad8 {[%emt 0:00:27]} 19. Bf4 {[%emt 0:02:34]} Ne4 {[%emt 0:00:25]} 20. Qe2 {[%emt 0:12:33]} Nxc3 {[%emt 0:01:07]} 21. bxc3 {[%emt 0:00:15]} Qb2 {[%emt 0:00:16]} 22. Qd2 {[%emt 0:01:46]} Bf6 {[%emt 0:01:22]} 23. Kh2 {[%emt 0:12:04]} Bxc3 {[%emt 0:02:13]} 24. Qe2 {[%emt 0:01:32]} Qxa2 {[%emt 0:00:35]} 25. g4 {[%emt 0:00:58]} Qc4 {[%emt 0:00:14]} 26. Qxc4 {[%emt 0:00:46]} dxc4 {[%emt 0:00:07]} 27. Rg1 {[%emt 0:00:13]} g5 {[%emt 0:00:17]} 28. Bg3 {[%emt 0:00:11]} f5 {[%emt 0:00:22]} 29. Kg2 {[%emt 0:00:31]} f4 {[%emt 0:00:13]} 30. Bh2 {[%emt 0:00:10]} e5 {[%emt 0:00:06]} 31. h4 {[%emt 0:00:17]} e4 {[%emt 0:00:22]} 32. Ne1 {[%emt 0:00:34]} e3 {[%emt 0:00:26]} 33. h5 {[%emt 0:04:20]} exf2 {[%emt 0:01:12]} 34. Kxf2 {[%emt 0:00:54]} Rd2+ {[%emt 0:00:10]} 0-1

[Event "Hungarian Youth-ch I 2024"]
[Site "Szolnok"]
[Date "2024.04.04"]
[Round "6.19"]
[White "Fan, Xiaotong"]
[Black "Golya, David"]
[Result "0-1"]
[ECO "B76"]
[WhiteElo "1731"]
[BlackElo "1672"]
[Annotator "NA RC"]
[PlyCount "50"]
[EventDate "2024.03.31"]
[EventType "swiss"]
[EventCountry "HUN"]
[SourceTitle "playchess.com"]
[Source "ChessBase"]
[SourceQuality "1"]
[TimeControl "5400+30"]

1. e4 {[%emt 0:00:26]} c5 {[%emt 0:00:04]} 2. Nf3 {[%emt 0:00:04]} d6 {[%emt 0:00:04]} 3. d4 {[%emt 0:00:05]} cxd4 {[%emt 0:00:04]} 4. Nxd4 {[%emt 0:00:07]} Nf6 {[%emt 0:00:06]} 5. Nc3 {[%emt 0:00:11]} g6 {[%emt 0:00:07]} 6. Be3 {[%emt 0:00:26]} Bg7 {[%emt 0:00:05]} 7. f3 {[%emt 0:00:25]} O-O {[%emt 0:00:12]} 8. Qd2 {[%emt 0:00:07]} Re8 {[%emt 0:00:12]} 9. Bc4 {[%emt 0:00:33]} Nc6 {[%emt 0:00:06]} 10. O-O-O {[%emt 0:00:53]} Bd7 {[%emt 0:00:11]} 11. h4 {[%emt 0:00:50]} h5 {[%emt 0:00:07]} 12. Bh6 {[%emt 0:01:07]} Bh8 {[%emt 0:01:20]} 13. Bb3 {[%emt 0:05:57]} Nxe4 {[%emt 0:11:21]} 14. fxe4 {[%emt 0:12:54]} Nxd4 {[%emt 0:00:20]} 15. Bxf7+ {[%emt 0:24:53]} Kxf7 {[%emt 0:01:20]} 16. Rhf1+ {[%emt 0:01:06]} Ke6 {[%emt 0:25:11]} 17. Qe3 {[%emt 0:09:48]} d5 {[%emt 0:07:21]} 18. Bf4 {[%emt 0:13:39]} Bf6 {[%emt 0:21:28]} 19. exd5+ {[%emt 0:12:56]} Kf7 {[%emt 0:00:12]} 20. Rxd4 {[%emt 0:01:27]} Bxd4 {[%emt 0:00:07]} 21. Be5+ {[%emt 0:01:12]} Kg8 {[%emt 0:01:44]} 22. Qg5 {[%emt 0:01:09]} Qb6 {[%emt 0:01:05]} 23. Bxd4 {[%emt 0:02:50]} Qxd4 {[%emt 0:00:14]} 24. Qxg6+ {[%emt 0:00:04]} Qg7 {[%emt 0:00:10]} 25. Qxh5 {[%emt 0:00:08]} Rf8 0-1